{"text_format":"3","workbook":"xlsx","n_sheets":4,"sheets":["START","PROJEKTPARAMETRE","PROJEKTOPLYSNINGER","PROJEKTTOTALER"],"not_rendered":{"charts":2,"defined_names":3,"pivot_tables":1},"read":"whole","date_system":"1900"}

{"sheet":"START","index":0,"n_rows":7,"n_cols":2,"rows_kept":7}
[null,"OM DENNE SKABELON"]
[null,"Spor projektparametre, projektoplysninger og projekttotaler i denne projektmappe til planlægning af begivenhed."]
[null,"Angiv oplysninger i regnearket Projektparametre for at opdatere kolonnediagrammer samt i regnearket Projektoplysninger. Pivottabellen i regnearket Projekttotaler opdateres automatisk."]
[null,"Udfyld Firmanavn i regnearket Parametre, så opdateres det automatisk i andre regneark."]
[null,"Bemærk!  "]
[null,"Der er yderligere vejledning at finde i kolonne A i hvert regneark i projektmappen BEGIVENHEDSPLANLÆGNING. Denne tekst er skjult med vilje. Du kan fjerne tekst ved at markere kolonne A og derefter vælge Slet. For ikke længere at skjule tekst skal du markere kolonne A og derefter ændre skriftfarven."]
[null,"Hvis du vil vide mere om tabellerne i regnearkene, skal du trykke på SKIFT og derefter F10, mens du er i en tabel, vælge indstillingen Tabel og derefter vælge Alternativ tekst."]

{"sheet":"PROJEKTPARAMETRE","index":1,"n_rows":19,"n_cols":9,"rows_kept":19,"merged":[[23,1,42,3]]}
[null,"Firmanavn"]
[null,"Projektsporing af begivenhedsadministration"]
[null,{"$f":"B1&\" Fortroligt\"","v":"Firmanavn Fortroligt"}]
[null,"De nedtonede celler beregnes for dig. Du behøver ikke at angive noget i dem."]
[null,"PROJEKTTYPE","KONTOADMINISTRATOR","PROJEKTLEDER","STRATEGILEDER","DESIGNSPECIALIST","PERSONALE VED BEGIVENHED","ADMINISTRATIONSMEDARBEJDERE","Total"]
[null,"Udvikling af begivenhedsstrategi",{"v":0.2,"d":"20%"},{"v":0.1,"d":"10%"},{"v":0.6,"d":"60%"},{"v":0,"d":"0%"},{"v":0,"d":"0%"},{"v":0.1,"d":"10%"},{"$f":"SUM(Parametre[[#This Row],[KONTOADMINISTRATOR]:[ADMINISTRATIONSMEDARBEJDERE]])","v":{"v":1,"d":"100%"}}]
[null,"Begivenhedsplanlægning",{"v":0.2,"d":"20%"},{"v":0.5,"d":"50%"},{"v":0.1,"d":"10%"},{"v":0.1,"d":"10%"},{"v":0,"d":"0%"},{"v":0.1,"d":"10%"},{"$f":"SUM(Parametre[[#This Row],[KONTOADMINISTRATOR]:[ADMINISTRATIONSMEDARBEJDERE]])","v":{"v":0.9999999999999999,"d":"100%"}}]
[null,"Begivenhedsdesign",{"v":0.2,"d":"20%"},{"v":0.2,"d":"20%"},{"v":0,"d":"0%"},{"v":0.5,"d":"50%"},{"v":0,"d":"0%"},{"v":0.1,"d":"10%"},{"$f":"SUM(Parametre[[#This Row],[KONTOADMINISTRATOR]:[ADMINISTRATIONSMEDARBEJDERE]])","v":{"v":1,"d":"100%"}}]
[null,"Logistik for begivenhed",{"v":0.2,"d":"20%"},{"v":0.6,"d":"60%"},{"v":0,"d":"0%"},{"v":0,"d":"0%"},{"v":0.1,"d":"10%"},{"v":0.1,"d":"10%"},{"$f":"SUM(Parametre[[#This Row],[KONTOADMINISTRATOR]:[ADMINISTRATIONSMEDARBEJDERE]])","v":{"v":1,"d":"100%"}}]
[null,"Personale ved begivenhed",{"v":0.2,"d":"20%"},{"v":0.1,"d":"10%"},{"v":0,"d":"0%"},{"v":0,"d":"0%"},{"v":0.6,"d":"60%"},{"v":0.1,"d":"10%"},{"$f":"SUM(Parametre[[#This Row],[KONTOADMINISTRATOR]:[ADMINISTRATIONSMEDARBEJDERE]])","v":{"v":1,"d":"100%"}}]
[null,"Vurdering af begivenhed",{"v":0.2,"d":"20%"},{"v":0.2,"d":"20%"},{"v":0.2,"d":"20%"},{"v":0.2,"d":"20%"},{"v":0,"d":"0%"},{"v":0.2,"d":"20%"},{"$f":"SUM(Parametre[[#This Row],[KONTOADMINISTRATOR]:[ADMINISTRATIONSMEDARBEJDERE]])","v":{"v":1,"d":"100%"}}]
[null,"Blandede satser",{"v":180,"d":"kr. 180"},{"v":120,"d":"kr. 120"},{"v":150,"d":"kr. 150"},{"v":100,"d":"kr. 100"},{"v":80,"d":"kr. 80"},{"v":60,"d":"kr. 60"}]
[]
[{"$nulls":5},"Søjlediagram, der viser planlagte i forhold til faktiske timer, er i denne celle."]
[null,null,"KONTOADMINISTRATOR","PROJEKTLEDER","STRATEGILEDER","DESIGNSPECIALIST","PERSONALE VED BEGIVENHED","ADMINISTRATIONSMEDARBEJDERE"]
[null,"PLANLAGTE OMKOSTNINGER",{"$f":"SUBTOTAL(109,Projektoplysninger[KONTOADMINISTRATOR])","v":{"v":54000,"d":"Kč 54,000.00"}},{"$f":"SUBTOTAL(109,Projektoplysninger[PROJEKTLEDER])","v":{"v":52200,"d":"Kč 52,200.00"}},{"$f":"SUBTOTAL(109,Projektoplysninger[STRATEGILEDER])","v":{"v":24000,"d":"Kč 24,000.00"}},{"$f":"SUBTOTAL(109,Projektoplysninger[DESIGNSPECIALIST])","v":{"v":29000,"d":"Kč 29,000.00"}},{"$f":"SUBTOTAL(109,Projektoplysninger[PERSONALE VED BEGIVENHED])","v":{"v":13200,"d":"Kč 13,200.00"}},{"$f":"SUBTOTAL(109,Projektoplysninger[ADMINISTRATIONSMEDARBEJDERE])","v":{"v":9000,"d":"Kč 9,000.00"}}]
[null,"FAKTISKE OMKOSTNINGER",{"$f":"SUBTOTAL(109,Projektoplysninger[[KONTOADMINISTRATOR ]])","v":{"v":54360,"d":"Kč 54,360.00"}},{"$f":"SUBTOTAL(109,Projektoplysninger[[PROJEKTLEDER ]])","v":{"v":51540,"d":"Kč 51,540.00"}},{"$f":"SUBTOTAL(109,Projektoplysninger[[STRATEGILEDER ]])","v":{"v":25650,"d":"Kč 25,650.00"}},{"$f":"SUBTOTAL(109,Projektoplysninger[[DESIGNSPECIALIST ]])","v":{"v":28900,"d":"Kč 28,900.00"}},{"$f":"SUBTOTAL(109,Projektoplysninger[[PERSONALE VED BEGIVENHED ]])","v":{"v":13400,"d":"Kč 13,400.00"}},{"$f":"SUBTOTAL(109,Projektoplysninger[[ADMINISTRATIONSMEDARBEJDERE ]])","v":{"v":9060,"d":"Kč 9,060.00"}}]
[null,"PLANLAGTE TIMER",{"$f":"C16/$C$12","v":{"v":300,"d":"300.00"}},{"$f":"D16/$C$12","v":{"v":290,"d":"290.00"}},{"v":133.33333333333334,"d":"133.33"},{"v":161.11111111111111,"d":"161.11"},{"v":73.33333333333333,"d":"73.33"},{"v":50,"d":"50.00"}]
[null,"FAKTISKE TIMER",{"$f":"C17/$C$12","v":{"v":302,"d":"302.00"}},{"$f":"D17/$C$12","v":{"v":286.3333333333333,"d":"286.33"}},{"$f":"E17/$C$12","v":{"v":142.5,"d":"142.50"}},{"$f":"F17/$C$12","v":{"v":160.55555555555554,"d":"160.56"}},{"$f":"G17/$C$12","v":{"v":74.44444444444444,"d":"74.44"}},{"$f":"H17/$C$12","v":{"v":50.333333333333336,"d":"50.33"}}]

{"sheet":"PROJEKTOPLYSNINGER","index":2,"n_rows":10,"n_cols":23,"rows_kept":10}
[null,{"$f":"PROJEKTPARAMETRE!B1","v":"Firmanavn"}]
[null,"Projektsporing af begivenhedsadministration"]
[null,{"$f":"PROJEKTPARAMETRE!B3","v":"Firmanavn Fortroligt"}]
["Angiv oplysninger i tabellen Projektoplysninger, der starter i cellen til højre.\nINFO\nHvis du vil tilføje en række i en tabel, skal du markere cellen nederst til højre i tabellens brødtekst (ikke rækken med totaler) og trykke på Tab, eller du kan trykke på Skift+F10 der, hvor rækken skal indsættes, og vælge Indsæt | Tabelrækker ovenfor/nedenfor.\nSørg for, at alle ubrugte rækker slettes, da pivottabellen PROJEKTTOTALER bruger alle tabelcellerne, og det vil i modsat fald kunne give forkerte resultater.","PROJEKTNAVN","PROJEKTTYPE","ANSLÅET START","ANSLÅET AFSLUTNING","FAKTISK START","FAKTISK AFSLUTNING","ANSLÅET ARBEJDE","FAKTISK ARBEJDE","ANSLÅET VARIGHED","FAKTISK VARIGHED","KONTOADMINISTRATOR","PROJEKTLEDER","STRATEGILEDER","DESIGNSPECIALIST","PERSONALE VED BEGIVENHED","ADMINISTRATIONSMEDARBEJDERE","KONTOADMINISTRATOR ","PROJEKTLEDER ","STRATEGILEDER ","DESIGNSPECIALIST ","PERSONALE VED BEGIVENHED ","ADMINISTRATIONSMEDARBEJDERE "]
[null,"Projekt 1","Udvikling af begivenhedsstrategi",{"$f":"DATE(YEAR(TODAY()),6,9)","v":"2022-06-09"},{"$f":" DATE(YEAR(TODAY()),8,7)","v":"2022-08-07"},{"$f":"DATE(YEAR(TODAY()),6,29)","v":"2022-06-29"},{"$f":"DATE(YEAR(TODAY()),9,3)","v":"2022-09-03"},200,220,{"$f":"DAYS360(Projektoplysninger[[#This Row],[ANSLÅET START]],Projektoplysninger[[#This Row],[ANSLÅET AFSLUTNING]],FALSE)","v":58},{"$f":"DAYS360(Projektoplysninger[[#This Row],[FAKTISK START]],Projektoplysninger[[#This Row],[FAKTISK AFSLUTNING]],FALSE)","v":64},{"$f":"INDEX(Parametre[],MATCH(Projektoplysninger[[#This Row],[PROJEKTTYPE]],Parametre[PROJEKTTYPE],0),MATCH(Projektoplysninger[[#Headers],[KONTOADMINISTRATOR]],Parametre[#Headers],0))*INDEX(PROJEKTPARAMETRE!$B$12:$H$12,1,MATCH(Projektoplysninger[[#Headers],[KONTOADMINISTRATOR]],Parametre[#Headers],0))*Projektoplysninger[[#This Row],[ANSLÅET ARBEJDE]]","v":{"v":7200,"d":"kr. 7,200"}},{"$f":"INDEX(Parametre[],MATCH(Projektoplysninger[[#This Row],[PROJEKTTYPE]],Parametre[PROJEKTTYPE],0),MATCH(Projektoplysninger[[#Headers],[PROJEKTLEDER]],Parametre[#Headers],0))*INDEX(PROJEKTPARAMETRE!$B$12:$H$12,1,MATCH(Projektoplysninger[[#Headers],[PROJEKTLEDER]],Parametre[#Headers],0))*Projektoplysninger[[#This Row],[ANSLÅET ARBEJDE]]","v":{"v":2400,"d":"kr. 2,400"}},{"$f":"INDEX(Parametre[],MATCH(Projektoplysninger[[#This Row],[PROJEKTTYPE]],Parametre[PROJEKTTYPE],0),MATCH(Projektoplysninger[[#Headers],[STRATEGILEDER]],Parametre[#Headers],0))*INDEX(PROJEKTPARAMETRE!$B$12:$H$12,1,MATCH(Projektoplysninger[[#Headers],[STRATEGILEDER]],Parametre[#Headers],0))*Projektoplysninger[[#This Row],[ANSLÅET ARBEJDE]]","v":{"v":18000,"d":"kr. 18,000"}},{"$f":"INDEX(Parametre[],MATCH(Projektoplysninger[[#This Row],[PROJEKTTYPE]],Parametre[PROJEKTTYPE],0),MATCH(Projektoplysninger[[#Headers],[DESIGNSPECIALIST]],Parametre[#Headers],0))*INDEX(PROJEKTPARAMETRE!$B$12:$H$12,1,MATCH(Projektoplysninger[[#Headers],[DESIGNSPECIALIST]],Parametre[#Headers],0))*Projektoplysninger[[#This Row],[ANSLÅET ARBEJDE]]","v":{"v":0,"d":"kr. 0"}},{"$f":"INDEX(Parametre[],MATCH(Projektoplysninger[[#This Row],[PROJEKTTYPE]],Parametre[PROJEKTTYPE],0),MATCH(Projektoplysninger[[#Headers],[PERSONALE VED BEGIVENHED]],Parametre[#Headers],0))*INDEX(PROJEKTPARAMETRE!$B$12:$H$12,1,MATCH(Projektoplysninger[[#Headers],[PERSONALE VED BEGIVENHED]],Parametre[#Headers],0))*Projektoplysninger[[#This Row],[ANSLÅET ARBEJDE]]","v":{"v":0,"d":"kr. 0"}},{"$f":"INDEX(Parametre[],MATCH(Projektoplysninger[[#This Row],[PROJEKTTYPE]],Parametre[PROJEKTTYPE],0),MATCH(Projektoplysninger[[#Headers],[ADMINISTRATIONSMEDARBEJDERE]],Parametre[#Headers],0))*INDEX(PROJEKTPARAMETRE!$B$12:$H$12,1,MATCH(Projektoplysninger[[#Headers],[ADMINISTRATIONSMEDARBEJDERE]],Parametre[#Headers],0))*Projektoplysninger[[#This Row],[ANSLÅET ARBEJDE]]","v":{"v":1200,"d":"kr. 1,200"}},{"$f":"INDEX(Parametre[],MATCH(Projektoplysninger[[#This Row],[PROJEKTTYPE]],Parametre[PROJEKTTYPE],0),MATCH(Projektoplysninger[[#Headers],[KONTOADMINISTRATOR]],Parametre[#Headers],0))*INDEX(PROJEKTPARAMETRE!$B$12:$H$12,1,MATCH(Projektoplysninger[[#Headers],[KONTOADMINISTRATOR]],Parametre[#Headers],0))*Projektoplysninger[[#This Row],[FAKTISK ARBEJDE]]","v":{"v":7920,"d":"kr. 7,920"}},{"$f":"INDEX(Parametre[],MATCH(Projektoplysninger[[#This Row],[PROJEKTTYPE]],Parametre[PROJEKTTYPE],0),MATCH(Projektoplysninger[[#Headers],[PROJEKTLEDER]],Parametre[#Headers],0))*INDEX(PROJEKTPARAMETRE!$B$12:$H$12,1,MATCH(Projektoplysninger[[#Headers],[PROJEKTLEDER]],Parametre[#Headers],0))*Projektoplysninger[[#This Row],[FAKTISK ARBEJDE]]","v":{"v":2640,"d":"kr. 2,640"}},{"$f":"INDEX(Parametre[],MATCH(Projektoplysninger[[#This Row],[PROJEKTTYPE]],Parametre[PROJEKTTYPE],0),MATCH(Projektoplysninger[[#Headers],[STRATEGILEDER]],Parametre[#Headers],0))*INDEX(PROJEKTPARAMETRE!$B$12:$H$12,1,MATCH(Projektoplysninger[[#Headers],[STRATEGILEDER]],Parametre[#Headers],0))*Projektoplysninger[[#This Row],[FAKTISK ARBEJDE]]","v":{"v":19800,"d":"kr. 19,800"}},{"$f":"INDEX(Parametre[],MATCH(Projektoplysninger[[#This Row],[PROJEKTTYPE]],Parametre[PROJEKTTYPE],0),MATCH(Projektoplysninger[[#Headers],[DESIGNSPECIALIST]],Parametre[#Headers],0))*INDEX(PROJEKTPARAMETRE!$B$12:$H$12,1,MATCH(Projektoplysninger[[#Headers],[DESIGNSPECIALIST]],Parametre[#Headers],0))*Projektoplysninger[[#This Row],[FAKTISK ARBEJDE]]","v":{"v":0,"d":"kr. 0"}},{"$f":"INDEX(Parametre[],MATCH(Projektoplysninger[[#This Row],[PROJEKTTYPE]],Parametre[PROJEKTTYPE],0),MATCH(Projektoplysninger[[#Headers],[PERSONALE VED BEGIVENHED]],Parametre[#Headers],0))*INDEX(PROJEKTPARAMETRE!$B$12:$H$12,1,MATCH(Projektoplysninger[[#Headers],[PERSONALE VED BEGIVENHED]],Parametre[#Headers],0))*Projektoplysninger[[#This Row],[FAKTISK ARBEJDE]]","v":{"v":0,"d":"kr. 0"}},{"$f":"INDEX(Parametre[],MATCH(Projektoplysninger[[#This Row],[PROJEKTTYPE]],Parametre[PROJEKTTYPE],0),MATCH(Projektoplysninger[[#Headers],[ADMINISTRATIONSMEDARBEJDERE]],Parametre[#Headers],0))*INDEX(PROJEKTPARAMETRE!$B$12:$H$12,1,MATCH(Projektoplysninger[[#Headers],[ADMINISTRATIONSMEDARBEJDERE]],Parametre[#Headers],0))*Projektoplysninger[[#This Row],[FAKTISK ARBEJDE]]","v":{"v":1320,"d":"kr. 1,320"}}]
[null,"Projekt 2","Begivenhedsplanlægning",{"$f":"DATE(YEAR(TODAY())+1,6,25)","v":"2023-06-25"},{"$f":"DATE(YEAR(TODAY())+1,7,27)","v":"2023-07-27"},{"$f":"DATE(YEAR(TODAY()),7,15)","v":"2022-07-15"},{"$f":"DATE(YEAR(TODAY())+1,8,25)","v":"2023-08-25"},400,390,{"$f":"DAYS360(Projektoplysninger[[#This Row],[ANSLÅET START]],Projektoplysninger[[#This Row],[ANSLÅET AFSLUTNING]],FALSE)","v":32},{"$f":"DAYS360(Projektoplysninger[[#This Row],[FAKTISK START]],Projektoplysninger[[#This Row],[FAKTISK AFSLUTNING]],FALSE)","v":400},{"$f":"INDEX(Parametre[],MATCH(Projektoplysninger[[#This Row],[PROJEKTTYPE]],Parametre[PROJEKTTYPE],0),MATCH(Projektoplysninger[[#Headers],[KONTOADMINISTRATOR]],Parametre[#Headers],0))*INDEX(PROJEKTPARAMETRE!$B$12:$H$12,1,MATCH(Projektoplysninger[[#Headers],[KONTOADMINISTRATOR]],Parametre[#Headers],0))*Projektoplysninger[[#This Row],[ANSLÅET ARBEJDE]]","v":{"v":14400,"d":"kr. 14,400"}},{"$f":"INDEX(Parametre[],MATCH(Projektoplysninger[[#This Row],[PROJEKTTYPE]],Parametre[PROJEKTTYPE],0),MATCH(Projektoplysninger[[#Headers],[PROJEKTLEDER]],Parametre[#Headers],0))*INDEX(PROJEKTPARAMETRE!$B$12:$H$12,1,MATCH(Projektoplysninger[[#Headers],[PROJEKTLEDER]],Parametre[#Headers],0))*Projektoplysninger[[#This Row],[ANSLÅET ARBEJDE]]","v":{"v":24000,"d":"kr. 24,000"}},{"$f":"INDEX(Parametre[],MATCH(Projektoplysninger[[#This Row],[PROJEKTTYPE]],Parametre[PROJEKTTYPE],0),MATCH(Projektoplysninger[[#Headers],[STRATEGILEDER]],Parametre[#Headers],0))*INDEX(PROJEKTPARAMETRE!$B$12:$H$12,1,MATCH(Projektoplysninger[[#Headers],[STRATEGILEDER]],Parametre[#Headers],0))*Projektoplysninger[[#This Row],[ANSLÅET ARBEJDE]]","v":{"v":6000,"d":"kr. 6,000"}},{"$f":"INDEX(Parametre[],MATCH(Projektoplysninger[[#This Row],[PROJEKTTYPE]],Parametre[PROJEKTTYPE],0),MATCH(Projektoplysninger[[#Headers],[DESIGNSPECIALIST]],Parametre[#Headers],0))*INDEX(PROJEKTPARAMETRE!$B$12:$H$12,1,MATCH(Projektoplysninger[[#Headers],[DESIGNSPECIALIST]],Parametre[#Headers],0))*Projektoplysninger[[#This Row],[ANSLÅET ARBEJDE]]","v":{"v":4000,"d":"kr. 4,000"}},{"$f":"INDEX(Parametre[],MATCH(Projektoplysninger[[#This Row],[PROJEKTTYPE]],Parametre[PROJEKTTYPE],0),MATCH(Projektoplysninger[[#Headers],[PERSONALE VED BEGIVENHED]],Parametre[#Headers],0))*INDEX(PROJEKTPARAMETRE!$B$12:$H$12,1,MATCH(Projektoplysninger[[#Headers],[PERSONALE VED BEGIVENHED]],Parametre[#Headers],0))*Projektoplysninger[[#This Row],[ANSLÅET ARBEJDE]]","v":{"v":0,"d":"kr. 0"}},{"$f":"INDEX(Parametre[],MATCH(Projektoplysninger[[#This Row],[PROJEKTTYPE]],Parametre[PROJEKTTYPE],0),MATCH(Projektoplysninger[[#Headers],[ADMINISTRATIONSMEDARBEJDERE]],Parametre[#Headers],0))*INDEX(PROJEKTPARAMETRE!$B$12:$H$12,1,MATCH(Projektoplysninger[[#Headers],[ADMINISTRATIONSMEDARBEJDERE]],Parametre[#Headers],0))*Projektoplysninger[[#This Row],[ANSLÅET ARBEJDE]]","v":{"v":2400,"d":"kr. 2,400"}},{"$f":"INDEX(Parametre[],MATCH(Projektoplysninger[[#This Row],[PROJEKTTYPE]],Parametre[PROJEKTTYPE],0),MATCH(Projektoplysninger[[#Headers],[KONTOADMINISTRATOR]],Parametre[#Headers],0))*INDEX(PROJEKTPARAMETRE!$B$12:$H$12,1,MATCH(Projektoplysninger[[#Headers],[KONTOADMINISTRATOR]],Parametre[#Headers],0))*Projektoplysninger[[#This Row],[FAKTISK ARBEJDE]]","v":{"v":14040,"d":"kr. 14,040"}},{"$f":"INDEX(Parametre[],MATCH(Projektoplysninger[[#This Row],[PROJEKTTYPE]],Parametre[PROJEKTTYPE],0),MATCH(Projektoplysninger[[#Headers],[PROJEKTLEDER]],Parametre[#Headers],0))*INDEX(PROJEKTPARAMETRE!$B$12:$H$12,1,MATCH(Projektoplysninger[[#Headers],[PROJEKTLEDER]],Parametre[#Headers],0))*Projektoplysninger[[#This Row],[FAKTISK ARBEJDE]]","v":{"v":23400,"d":"kr. 23,400"}},{"$f":"INDEX(Parametre[],MATCH(Projektoplysninger[[#This Row],[PROJEKTTYPE]],Parametre[PROJEKTTYPE],0),MATCH(Projektoplysninger[[#Headers],[STRATEGILEDER]],Parametre[#Headers],0))*INDEX(PROJEKTPARAMETRE!$B$12:$H$12,1,MATCH(Projektoplysninger[[#Headers],[STRATEGILEDER]],Parametre[#Headers],0))*Projektoplysninger[[#This Row],[FAKTISK ARBEJDE]]","v":{"v":5850,"d":"kr. 5,850"}},{"$f":"INDEX(Parametre[],MATCH(Projektoplysninger[[#This Row],[PROJEKTTYPE]],Parametre[PROJEKTTYPE],0),MATCH(Projektoplysninger[[#Headers],[DESIGNSPECIALIST]],Parametre[#Headers],0))*INDEX(PROJEKTPARAMETRE!$B$12:$H$12,1,MATCH(Projektoplysninger[[#Headers],[DESIGNSPECIALIST]],Parametre[#Headers],0))*Projektoplysninger[[#This Row],[FAKTISK ARBEJDE]]","v":{"v":3900,"d":"kr. 3,900"}},{"$f":"INDEX(Parametre[],MATCH(Projektoplysninger[[#This Row],[PROJEKTTYPE]],Parametre[PROJEKTTYPE],0),MATCH(Projektoplysninger[[#Headers],[PERSONALE VED BEGIVENHED]],Parametre[#Headers],0))*INDEX(PROJEKTPARAMETRE!$B$12:$H$12,1,MATCH(Projektoplysninger[[#Headers],[PERSONALE VED BEGIVENHED]],Parametre[#Headers],0))*Projektoplysninger[[#This Row],[FAKTISK ARBEJDE]]","v":{"v":0,"d":"kr. 0"}},{"$f":"INDEX(Parametre[],MATCH(Projektoplysninger[[#This Row],[PROJEKTTYPE]],Parametre[PROJEKTTYPE],0),MATCH(Projektoplysninger[[#Headers],[ADMINISTRATIONSMEDARBEJDERE]],Parametre[#Headers],0))*INDEX(PROJEKTPARAMETRE!$B$12:$H$12,1,MATCH(Projektoplysninger[[#Headers],[ADMINISTRATIONSMEDARBEJDERE]],Parametre[#Headers],0))*Projektoplysninger[[#This Row],[FAKTISK ARBEJDE]]","v":{"v":2340,"d":"kr. 2,340"}}]
[null,"Projekt 3","Begivenhedsdesign",{"$f":"DATE(YEAR(TODAY())+2,7,12)","v":"2024-07-12"},{"$f":"DATE(YEAR(TODAY())+2,9,19)","v":"2024-09-19"},"2025-08-07","2025-10-10",500,500,{"$f":"DAYS360(Projektoplysninger[[#This Row],[ANSLÅET START]],Projektoplysninger[[#This Row],[ANSLÅET AFSLUTNING]],FALSE)","v":67},{"$f":"DAYS360(Projektoplysninger[[#This Row],[FAKTISK START]],Projektoplysninger[[#This Row],[FAKTISK AFSLUTNING]],FALSE)","v":63},{"$f":"INDEX(Parametre[],MATCH(Projektoplysninger[[#This Row],[PROJEKTTYPE]],Parametre[PROJEKTTYPE],0),MATCH(Projektoplysninger[[#Headers],[KONTOADMINISTRATOR]],Parametre[#Headers],0))*INDEX(PROJEKTPARAMETRE!$B$12:$H$12,1,MATCH(Projektoplysninger[[#Headers],[KONTOADMINISTRATOR]],Parametre[#Headers],0))*Projektoplysninger[[#This Row],[ANSLÅET ARBEJDE]]","v":{"v":18000,"d":"kr. 18,000"}},{"$f":"INDEX(Parametre[],MATCH(Projektoplysninger[[#This Row],[PROJEKTTYPE]],Parametre[PROJEKTTYPE],0),MATCH(Projektoplysninger[[#Headers],[PROJEKTLEDER]],Parametre[#Headers],0))*INDEX(PROJEKTPARAMETRE!$B$12:$H$12,1,MATCH(Projektoplysninger[[#Headers],[PROJEKTLEDER]],Parametre[#Headers],0))*Projektoplysninger[[#This Row],[ANSLÅET ARBEJDE]]","v":{"v":12000,"d":"kr. 12,000"}},{"$f":"INDEX(Parametre[],MATCH(Projektoplysninger[[#This Row],[PROJEKTTYPE]],Parametre[PROJEKTTYPE],0),MATCH(Projektoplysninger[[#Headers],[STRATEGILEDER]],Parametre[#Headers],0))*INDEX(PROJEKTPARAMETRE!$B$12:$H$12,1,MATCH(Projektoplysninger[[#Headers],[STRATEGILEDER]],Parametre[#Headers],0))*Projektoplysninger[[#This Row],[ANSLÅET ARBEJDE]]","v":{"v":0,"d":"kr. 0"}},{"$f":"INDEX(Parametre[],MATCH(Projektoplysninger[[#This Row],[PROJEKTTYPE]],Parametre[PROJEKTTYPE],0),MATCH(Projektoplysninger[[#Headers],[DESIGNSPECIALIST]],Parametre[#Headers],0))*INDEX(PROJEKTPARAMETRE!$B$12:$H$12,1,MATCH(Projektoplysninger[[#Headers],[DESIGNSPECIALIST]],Parametre[#Headers],0))*Projektoplysninger[[#This Row],[ANSLÅET ARBEJDE]]","v":{"v":25000,"d":"kr. 25,000"}},{"$f":"INDEX(Parametre[],MATCH(Projektoplysninger[[#This Row],[PROJEKTTYPE]],Parametre[PROJEKTTYPE],0),MATCH(Projektoplysninger[[#Headers],[PERSONALE VED BEGIVENHED]],Parametre[#Headers],0))*INDEX(PROJEKTPARAMETRE!$B$12:$H$12,1,MATCH(Projektoplysninger[[#Headers],[PERSONALE VED BEGIVENHED]],Parametre[#Headers],0))*Projektoplysninger[[#This Row],[ANSLÅET ARBEJDE]]","v":{"v":0,"d":"kr. 0"}},{"$f":"INDEX(Parametre[],MATCH(Projektoplysninger[[#This Row],[PROJEKTTYPE]],Parametre[PROJEKTTYPE],0),MATCH(Projektoplysninger[[#Headers],[ADMINISTRATIONSMEDARBEJDERE]],Parametre[#Headers],0))*INDEX(PROJEKTPARAMETRE!$B$12:$H$12,1,MATCH(Projektoplysninger[[#Headers],[ADMINISTRATIONSMEDARBEJDERE]],Parametre[#Headers],0))*Projektoplysninger[[#This Row],[ANSLÅET ARBEJDE]]","v":{"v":3000,"d":"kr. 3,000"}},{"$f":"INDEX(Parametre[],MATCH(Projektoplysninger[[#This Row],[PROJEKTTYPE]],Parametre[PROJEKTTYPE],0),MATCH(Projektoplysninger[[#Headers],[KONTOADMINISTRATOR]],Parametre[#Headers],0))*INDEX(PROJEKTPARAMETRE!$B$12:$H$12,1,MATCH(Projektoplysninger[[#Headers],[KONTOADMINISTRATOR]],Parametre[#Headers],0))*Projektoplysninger[[#This Row],[FAKTISK ARBEJDE]]","v":{"v":18000,"d":"kr. 18,000"}},{"$f":"INDEX(Parametre[],MATCH(Projektoplysninger[[#This Row],[PROJEKTTYPE]],Parametre[PROJEKTTYPE],0),MATCH(Projektoplysninger[[#Headers],[PROJEKTLEDER]],Parametre[#Headers],0))*INDEX(PROJEKTPARAMETRE!$B$12:$H$12,1,MATCH(Projektoplysninger[[#Headers],[PROJEKTLEDER]],Parametre[#Headers],0))*Projektoplysninger[[#This Row],[FAKTISK ARBEJDE]]","v":{"v":12000,"d":"kr. 12,000"}},{"$f":"INDEX(Parametre[],MATCH(Projektoplysninger[[#This Row],[PROJEKTTYPE]],Parametre[PROJEKTTYPE],0),MATCH(Projektoplysninger[[#Headers],[STRATEGILEDER]],Parametre[#Headers],0))*INDEX(PROJEKTPARAMETRE!$B$12:$H$12,1,MATCH(Projektoplysninger[[#Headers],[STRATEGILEDER]],Parametre[#Headers],0))*Projektoplysninger[[#This Row],[FAKTISK ARBEJDE]]","v":{"v":0,"d":"kr. 0"}},{"$f":"INDEX(Parametre[],MATCH(Projektoplysninger[[#This Row],[PROJEKTTYPE]],Parametre[PROJEKTTYPE],0),MATCH(Projektoplysninger[[#Headers],[DESIGNSPECIALIST]],Parametre[#Headers],0))*INDEX(PROJEKTPARAMETRE!$B$12:$H$12,1,MATCH(Projektoplysninger[[#Headers],[DESIGNSPECIALIST]],Parametre[#Headers],0))*Projektoplysninger[[#This Row],[FAKTISK ARBEJDE]]","v":{"v":25000,"d":"kr. 25,000"}},{"$f":"INDEX(Parametre[],MATCH(Projektoplysninger[[#This Row],[PROJEKTTYPE]],Parametre[PROJEKTTYPE],0),MATCH(Projektoplysninger[[#Headers],[PERSONALE VED BEGIVENHED]],Parametre[#Headers],0))*INDEX(PROJEKTPARAMETRE!$B$12:$H$12,1,MATCH(Projektoplysninger[[#Headers],[PERSONALE VED BEGIVENHED]],Parametre[#Headers],0))*Projektoplysninger[[#This Row],[FAKTISK ARBEJDE]]","v":{"v":0,"d":"kr. 0"}},{"$f":"INDEX(Parametre[],MATCH(Projektoplysninger[[#This Row],[PROJEKTTYPE]],Parametre[PROJEKTTYPE],0),MATCH(Projektoplysninger[[#Headers],[ADMINISTRATIONSMEDARBEJDERE]],Parametre[#Headers],0))*INDEX(PROJEKTPARAMETRE!$B$12:$H$12,1,MATCH(Projektoplysninger[[#Headers],[ADMINISTRATIONSMEDARBEJDERE]],Parametre[#Headers],0))*Projektoplysninger[[#This Row],[FAKTISK ARBEJDE]]","v":{"v":3000,"d":"kr. 3,000"}}]
[null,"Projekt 4","Logistik for begivenhed",{"$f":"DATE(YEAR(TODAY())+3,7,30)","v":"2025-07-30"},{"$f":"DATE(YEAR(TODAY())+3,9,28)","v":"2025-09-28"},{"$f":"DATE(YEAR(TODAY())+3,9,14)","v":"2025-09-14"},{"$f":"DATE(YEAR(TODAY())+3,11,13)","v":"2025-11-13"},150,145,{"$f":"DAYS360(Projektoplysninger[[#This Row],[ANSLÅET START]],Projektoplysninger[[#This Row],[ANSLÅET AFSLUTNING]],FALSE)","v":58},{"$f":"DAYS360(Projektoplysninger[[#This Row],[FAKTISK START]],Projektoplysninger[[#This Row],[FAKTISK AFSLUTNING]],FALSE)","v":59},{"$f":"INDEX(Parametre[],MATCH(Projektoplysninger[[#This Row],[PROJEKTTYPE]],Parametre[PROJEKTTYPE],0),MATCH(Projektoplysninger[[#Headers],[KONTOADMINISTRATOR]],Parametre[#Headers],0))*INDEX(PROJEKTPARAMETRE!$B$12:$H$12,1,MATCH(Projektoplysninger[[#Headers],[KONTOADMINISTRATOR]],Parametre[#Headers],0))*Projektoplysninger[[#This Row],[ANSLÅET ARBEJDE]]","v":{"v":5400,"d":"kr. 5,400"}},{"$f":"INDEX(Parametre[],MATCH(Projektoplysninger[[#This Row],[PROJEKTTYPE]],Parametre[PROJEKTTYPE],0),MATCH(Projektoplysninger[[#Headers],[PROJEKTLEDER]],Parametre[#Headers],0))*INDEX(PROJEKTPARAMETRE!$B$12:$H$12,1,MATCH(Projektoplysninger[[#Headers],[PROJEKTLEDER]],Parametre[#Headers],0))*Projektoplysninger[[#This Row],[ANSLÅET ARBEJDE]]","v":{"v":10800,"d":"kr. 10,800"}},{"$f":"INDEX(Parametre[],MATCH(Projektoplysninger[[#This Row],[PROJEKTTYPE]],Parametre[PROJEKTTYPE],0),MATCH(Projektoplysninger[[#Headers],[STRATEGILEDER]],Parametre[#Headers],0))*INDEX(PROJEKTPARAMETRE!$B$12:$H$12,1,MATCH(Projektoplysninger[[#Headers],[STRATEGILEDER]],Parametre[#Headers],0))*Projektoplysninger[[#This Row],[ANSLÅET ARBEJDE]]","v":{"v":0,"d":"kr. 0"}},{"$f":"INDEX(Parametre[],MATCH(Projektoplysninger[[#This Row],[PROJEKTTYPE]],Parametre[PROJEKTTYPE],0),MATCH(Projektoplysninger[[#Headers],[DESIGNSPECIALIST]],Parametre[#Headers],0))*INDEX(PROJEKTPARAMETRE!$B$12:$H$12,1,MATCH(Projektoplysninger[[#Headers],[DESIGNSPECIALIST]],Parametre[#Headers],0))*Projektoplysninger[[#This Row],[ANSLÅET ARBEJDE]]","v":{"v":0,"d":"kr. 0"}},{"$f":"INDEX(Parametre[],MATCH(Projektoplysninger[[#This Row],[PROJEKTTYPE]],Parametre[PROJEKTTYPE],0),MATCH(Projektoplysninger[[#Headers],[PERSONALE VED BEGIVENHED]],Parametre[#Headers],0))*INDEX(PROJEKTPARAMETRE!$B$12:$H$12,1,MATCH(Projektoplysninger[[#Headers],[PERSONALE VED BEGIVENHED]],Parametre[#Headers],0))*Projektoplysninger[[#This Row],[ANSLÅET ARBEJDE]]","v":{"v":1200,"d":"kr. 1,200"}},{"$f":"INDEX(Parametre[],MATCH(Projektoplysninger[[#This Row],[PROJEKTTYPE]],Parametre[PROJEKTTYPE],0),MATCH(Projektoplysninger[[#Headers],[ADMINISTRATIONSMEDARBEJDERE]],Parametre[#Headers],0))*INDEX(PROJEKTPARAMETRE!$B$12:$H$12,1,MATCH(Projektoplysninger[[#Headers],[ADMINISTRATIONSMEDARBEJDERE]],Parametre[#Headers],0))*Projektoplysninger[[#This Row],[ANSLÅET ARBEJDE]]","v":{"v":900,"d":"kr. 900"}},{"$f":"INDEX(Parametre[],MATCH(Projektoplysninger[[#This Row],[PROJEKTTYPE]],Parametre[PROJEKTTYPE],0),MATCH(Projektoplysninger[[#Headers],[KONTOADMINISTRATOR]],Parametre[#Headers],0))*INDEX(PROJEKTPARAMETRE!$B$12:$H$12,1,MATCH(Projektoplysninger[[#Headers],[KONTOADMINISTRATOR]],Parametre[#Headers],0))*Projektoplysninger[[#This Row],[FAKTISK ARBEJDE]]","v":{"v":5220,"d":"kr. 5,220"}},{"$f":"INDEX(Parametre[],MATCH(Projektoplysninger[[#This Row],[PROJEKTTYPE]],Parametre[PROJEKTTYPE],0),MATCH(Projektoplysninger[[#Headers],[PROJEKTLEDER]],Parametre[#Headers],0))*INDEX(PROJEKTPARAMETRE!$B$12:$H$12,1,MATCH(Projektoplysninger[[#Headers],[PROJEKTLEDER]],Parametre[#Headers],0))*Projektoplysninger[[#This Row],[FAKTISK ARBEJDE]]","v":{"v":10440,"d":"kr. 10,440"}},{"$f":"INDEX(Parametre[],MATCH(Projektoplysninger[[#This Row],[PROJEKTTYPE]],Parametre[PROJEKTTYPE],0),MATCH(Projektoplysninger[[#Headers],[STRATEGILEDER]],Parametre[#Headers],0))*INDEX(PROJEKTPARAMETRE!$B$12:$H$12,1,MATCH(Projektoplysninger[[#Headers],[STRATEGILEDER]],Parametre[#Headers],0))*Projektoplysninger[[#This Row],[FAKTISK ARBEJDE]]","v":{"v":0,"d":"kr. 0"}},{"$f":"INDEX(Parametre[],MATCH(Projektoplysninger[[#This Row],[PROJEKTTYPE]],Parametre[PROJEKTTYPE],0),MATCH(Projektoplysninger[[#Headers],[DESIGNSPECIALIST]],Parametre[#Headers],0))*INDEX(PROJEKTPARAMETRE!$B$12:$H$12,1,MATCH(Projektoplysninger[[#Headers],[DESIGNSPECIALIST]],Parametre[#Headers],0))*Projektoplysninger[[#This Row],[FAKTISK ARBEJDE]]","v":{"v":0,"d":"kr. 0"}},{"$f":"INDEX(Parametre[],MATCH(Projektoplysninger[[#This Row],[PROJEKTTYPE]],Parametre[PROJEKTTYPE],0),MATCH(Projektoplysninger[[#Headers],[PERSONALE VED BEGIVENHED]],Parametre[#Headers],0))*INDEX(PROJEKTPARAMETRE!$B$12:$H$12,1,MATCH(Projektoplysninger[[#Headers],[PERSONALE VED BEGIVENHED]],Parametre[#Headers],0))*Projektoplysninger[[#This Row],[FAKTISK ARBEJDE]]","v":{"v":1160,"d":"kr. 1,160"}},{"$f":"INDEX(Parametre[],MATCH(Projektoplysninger[[#This Row],[PROJEKTTYPE]],Parametre[PROJEKTTYPE],0),MATCH(Projektoplysninger[[#Headers],[ADMINISTRATIONSMEDARBEJDERE]],Parametre[#Headers],0))*INDEX(PROJEKTPARAMETRE!$B$12:$H$12,1,MATCH(Projektoplysninger[[#Headers],[ADMINISTRATIONSMEDARBEJDERE]],Parametre[#Headers],0))*Projektoplysninger[[#This Row],[FAKTISK ARBEJDE]]","v":{"v":870,"d":"kr. 870"}}]
[null,"Projekt 5","Personale ved begivenhed",{"$f":"DATE(YEAR(TODAY())+4,8,11)","v":"2026-08-11"},{"$f":"DATE(YEAR(TODAY())+4,8,21)","v":"2026-08-21"},{"$f":"DATE(YEAR(TODAY())+4,9,14)","v":"2026-09-14"},{"$f":"DATE(YEAR(TODAY())+4,9,25)","v":"2026-09-25"},250,255,{"$f":"DAYS360(Projektoplysninger[[#This Row],[ANSLÅET START]],Projektoplysninger[[#This Row],[ANSLÅET AFSLUTNING]],FALSE)","v":10},{"$f":"DAYS360(Projektoplysninger[[#This Row],[FAKTISK START]],Projektoplysninger[[#This Row],[FAKTISK AFSLUTNING]],FALSE)","v":11},{"$f":"INDEX(Parametre[],MATCH(Projektoplysninger[[#This Row],[PROJEKTTYPE]],Parametre[PROJEKTTYPE],0),MATCH(Projektoplysninger[[#Headers],[KONTOADMINISTRATOR]],Parametre[#Headers],0))*INDEX(PROJEKTPARAMETRE!$B$12:$H$12,1,MATCH(Projektoplysninger[[#Headers],[KONTOADMINISTRATOR]],Parametre[#Headers],0))*Projektoplysninger[[#This Row],[ANSLÅET ARBEJDE]]","v":{"v":9000,"d":"kr. 9,000"}},{"$f":"INDEX(Parametre[],MATCH(Projektoplysninger[[#This Row],[PROJEKTTYPE]],Parametre[PROJEKTTYPE],0),MATCH(Projektoplysninger[[#Headers],[PROJEKTLEDER]],Parametre[#Headers],0))*INDEX(PROJEKTPARAMETRE!$B$12:$H$12,1,MATCH(Projektoplysninger[[#Headers],[PROJEKTLEDER]],Parametre[#Headers],0))*Projektoplysninger[[#This Row],[ANSLÅET ARBEJDE]]","v":{"v":3000,"d":"kr. 3,000"}},{"$f":"INDEX(Parametre[],MATCH(Projektoplysninger[[#This Row],[PROJEKTTYPE]],Parametre[PROJEKTTYPE],0),MATCH(Projektoplysninger[[#Headers],[STRATEGILEDER]],Parametre[#Headers],0))*INDEX(PROJEKTPARAMETRE!$B$12:$H$12,1,MATCH(Projektoplysninger[[#Headers],[STRATEGILEDER]],Parametre[#Headers],0))*Projektoplysninger[[#This Row],[ANSLÅET ARBEJDE]]","v":{"v":0,"d":"kr. 0"}},{"$f":"INDEX(Parametre[],MATCH(Projektoplysninger[[#This Row],[PROJEKTTYPE]],Parametre[PROJEKTTYPE],0),MATCH(Projektoplysninger[[#Headers],[DESIGNSPECIALIST]],Parametre[#Headers],0))*INDEX(PROJEKTPARAMETRE!$B$12:$H$12,1,MATCH(Projektoplysninger[[#Headers],[DESIGNSPECIALIST]],Parametre[#Headers],0))*Projektoplysninger[[#This Row],[ANSLÅET ARBEJDE]]","v":{"v":0,"d":"kr. 0"}},{"$f":"INDEX(Parametre[],MATCH(Projektoplysninger[[#This Row],[PROJEKTTYPE]],Parametre[PROJEKTTYPE],0),MATCH(Projektoplysninger[[#Headers],[PERSONALE VED BEGIVENHED]],Parametre[#Headers],0))*INDEX(PROJEKTPARAMETRE!$B$12:$H$12,1,MATCH(Projektoplysninger[[#Headers],[PERSONALE VED BEGIVENHED]],Parametre[#Headers],0))*Projektoplysninger[[#This Row],[ANSLÅET ARBEJDE]]","v":{"v":12000,"d":"kr. 12,000"}},{"$f":"INDEX(Parametre[],MATCH(Projektoplysninger[[#This Row],[PROJEKTTYPE]],Parametre[PROJEKTTYPE],0),MATCH(Projektoplysninger[[#Headers],[ADMINISTRATIONSMEDARBEJDERE]],Parametre[#Headers],0))*INDEX(PROJEKTPARAMETRE!$B$12:$H$12,1,MATCH(Projektoplysninger[[#Headers],[ADMINISTRATIONSMEDARBEJDERE]],Parametre[#Headers],0))*Projektoplysninger[[#This Row],[ANSLÅET ARBEJDE]]","v":{"v":1500,"d":"kr. 1,500"}},{"$f":"INDEX(Parametre[],MATCH(Projektoplysninger[[#This Row],[PROJEKTTYPE]],Parametre[PROJEKTTYPE],0),MATCH(Projektoplysninger[[#Headers],[KONTOADMINISTRATOR]],Parametre[#Headers],0))*INDEX(PROJEKTPARAMETRE!$B$12:$H$12,1,MATCH(Projektoplysninger[[#Headers],[KONTOADMINISTRATOR]],Parametre[#Headers],0))*Projektoplysninger[[#This Row],[FAKTISK ARBEJDE]]","v":{"v":9180,"d":"kr. 9,180"}},{"$f":"INDEX(Parametre[],MATCH(Projektoplysninger[[#This Row],[PROJEKTTYPE]],Parametre[PROJEKTTYPE],0),MATCH(Projektoplysninger[[#Headers],[PROJEKTLEDER]],Parametre[#Headers],0))*INDEX(PROJEKTPARAMETRE!$B$12:$H$12,1,MATCH(Projektoplysninger[[#Headers],[PROJEKTLEDER]],Parametre[#Headers],0))*Projektoplysninger[[#This Row],[FAKTISK ARBEJDE]]","v":{"v":3060,"d":"kr. 3,060"}},{"$f":"INDEX(Parametre[],MATCH(Projektoplysninger[[#This Row],[PROJEKTTYPE]],Parametre[PROJEKTTYPE],0),MATCH(Projektoplysninger[[#Headers],[STRATEGILEDER]],Parametre[#Headers],0))*INDEX(PROJEKTPARAMETRE!$B$12:$H$12,1,MATCH(Projektoplysninger[[#Headers],[STRATEGILEDER]],Parametre[#Headers],0))*Projektoplysninger[[#This Row],[FAKTISK ARBEJDE]]","v":{"v":0,"d":"kr. 0"}},{"$f":"INDEX(Parametre[],MATCH(Projektoplysninger[[#This Row],[PROJEKTTYPE]],Parametre[PROJEKTTYPE],0),MATCH(Projektoplysninger[[#Headers],[DESIGNSPECIALIST]],Parametre[#Headers],0))*INDEX(PROJEKTPARAMETRE!$B$12:$H$12,1,MATCH(Projektoplysninger[[#Headers],[DESIGNSPECIALIST]],Parametre[#Headers],0))*Projektoplysninger[[#This Row],[FAKTISK ARBEJDE]]","v":{"v":0,"d":"kr. 0"}},{"$f":"INDEX(Parametre[],MATCH(Projektoplysninger[[#This Row],[PROJEKTTYPE]],Parametre[PROJEKTTYPE],0),MATCH(Projektoplysninger[[#Headers],[PERSONALE VED BEGIVENHED]],Parametre[#Headers],0))*INDEX(PROJEKTPARAMETRE!$B$12:$H$12,1,MATCH(Projektoplysninger[[#Headers],[PERSONALE VED BEGIVENHED]],Parametre[#Headers],0))*Projektoplysninger[[#This Row],[FAKTISK ARBEJDE]]","v":{"v":12240,"d":"kr. 12,240"}},{"$f":"INDEX(Parametre[],MATCH(Projektoplysninger[[#This Row],[PROJEKTTYPE]],Parametre[PROJEKTTYPE],0),MATCH(Projektoplysninger[[#Headers],[ADMINISTRATIONSMEDARBEJDERE]],Parametre[#Headers],0))*INDEX(PROJEKTPARAMETRE!$B$12:$H$12,1,MATCH(Projektoplysninger[[#Headers],[ADMINISTRATIONSMEDARBEJDERE]],Parametre[#Headers],0))*Projektoplysninger[[#This Row],[FAKTISK ARBEJDE]]","v":{"v":1530,"d":"kr. 1,530"}}]
[null,"TOTAL",{"$nulls":5},{"$f":"SUBTOTAL(109,Projektoplysninger[ANSLÅET ARBEJDE])","v":1500},{"$f":"SUBTOTAL(109,Projektoplysninger[FAKTISK ARBEJDE])","v":1510},{"$f":"SUBTOTAL(109,Projektoplysninger[ANSLÅET VARIGHED])","v":225},{"$f":"SUBTOTAL(109,Projektoplysninger[FAKTISK VARIGHED])","v":597}]

{"sheet":"PROJEKTTOTALER","index":3,"n_rows":10,"n_cols":14,"rows_kept":10}
[null,{"$f":"PROJEKTPARAMETRE!B1","v":"Firmanavn"}]
[null,"Projektsporing af begivenhedsadministration"]
[null,{"$f":"PROJEKTPARAMETRE!B3","v":"Firmanavn Fortroligt"}]
["Pivottabellen, der begynder i cellen til højre, opdateres automatisk.\nINFO\nHvis du vil opdatere pivottabellen til højre, skal du markere den (en vilkårlig celle i pivottabellen), og på båndfanen PIVOTTABELVÆRKTØJER | ANALYSÉR skal du vælge Opdater, eller du kan trykke på Skift+F10 i en vilkårlig celle i pivottabellen og derefter vælge Opdater.","PROJEKTNAVN","ANSLÅET KONTOADMINISTRATOR","ANSLÅET PROJEKTLEDER","ANSLÅET STRATEGILEDER","ANSLÅET DESIGNSPECIALIST","ANSLÅET PERSONALE VED BEGIVENHED","ANSLÅET ADMINISTRATIONSMEDARBEJDERE","FAKTISK KONTOADMINISTRATOR","FAKTISK PROJEKTLEDER","FAKTISK STRATEGILEDER","FAKTISK DESIGNSPECIALIST","FAKTISK PERSONALE VED BEGIVENHED","FAKTISK ADMINISTRATIONSMEDARBEJDERE"]
[null,"Projekt 1",{"v":7200,"d":"kr. 7,200.00"},{"v":2400,"d":"kr. 2,400.00"},{"v":18000,"d":"kr. 18,000.00"},{"v":0,"d":"kr. 0.00"},{"v":0,"d":"kr. 0.00"},{"v":1200,"d":"kr. 1,200.00"},{"v":7920,"d":"kr. 7,920.00"},{"v":2640,"d":"kr. 2,640.00"},{"v":19800,"d":"kr. 19,800.00"},{"v":0,"d":"kr. 0.00"},{"v":0,"d":"kr. 0.00"},{"v":1320,"d":"kr. 1,320.00"}]
[null,"Projekt 2",{"v":14400,"d":"kr. 14,400.00"},{"v":24000,"d":"kr. 24,000.00"},{"v":6000,"d":"kr. 6,000.00"},{"v":4000,"d":"kr. 4,000.00"},{"v":0,"d":"kr. 0.00"},{"v":2400,"d":"kr. 2,400.00"},{"v":14040,"d":"kr. 14,040.00"},{"v":23400,"d":"kr. 23,400.00"},{"v":5850,"d":"kr. 5,850.00"},{"v":3900,"d":"kr. 3,900.00"},{"v":0,"d":"kr. 0.00"},{"v":2340,"d":"kr. 2,340.00"}]
[null,"Projekt 3",{"v":18000,"d":"kr. 18,000.00"},{"v":12000,"d":"kr. 12,000.00"},{"v":0,"d":"kr. 0.00"},{"v":25000,"d":"kr. 25,000.00"},{"v":0,"d":"kr. 0.00"},{"v":3000,"d":"kr. 3,000.00"},{"v":18000,"d":"kr. 18,000.00"},{"v":12000,"d":"kr. 12,000.00"},{"v":0,"d":"kr. 0.00"},{"v":25000,"d":"kr. 25,000.00"},{"v":0,"d":"kr. 0.00"},{"v":3000,"d":"kr. 3,000.00"}]
[null,"Projekt 4",{"v":5400,"d":"kr. 5,400.00"},{"v":10800,"d":"kr. 10,800.00"},{"v":0,"d":"kr. 0.00"},{"v":0,"d":"kr. 0.00"},{"v":1200,"d":"kr. 1,200.00"},{"v":900,"d":"kr. 900.00"},{"v":5220,"d":"kr. 5,220.00"},{"v":10440,"d":"kr. 10,440.00"},{"v":0,"d":"kr. 0.00"},{"v":0,"d":"kr. 0.00"},{"v":1160,"d":"kr. 1,160.00"},{"v":870,"d":"kr. 870.00"}]
[null,"Projekt 5",{"v":9000,"d":"kr. 9,000.00"},{"v":3000,"d":"kr. 3,000.00"},{"v":0,"d":"kr. 0.00"},{"v":0,"d":"kr. 0.00"},{"v":12000,"d":"kr. 12,000.00"},{"v":1500,"d":"kr. 1,500.00"},{"v":9180,"d":"kr. 9,180.00"},{"v":3060,"d":"kr. 3,060.00"},{"v":0,"d":"kr. 0.00"},{"v":0,"d":"kr. 0.00"},{"v":12240,"d":"kr. 12,240.00"},{"v":1530,"d":"kr. 1,530.00"}]
[null,"Hovedtotal",{"v":54000,"d":"kr. 54,000.00"},{"v":52200,"d":"kr. 52,200.00"},{"v":24000,"d":"kr. 24,000.00"},{"v":29000,"d":"kr. 29,000.00"},{"v":13200,"d":"kr. 13,200.00"},{"v":9000,"d":"kr. 9,000.00"},{"v":54360,"d":"kr. 54,360.00"},{"v":51540,"d":"kr. 51,540.00"},{"v":25650,"d":"kr. 25,650.00"},{"v":28900,"d":"kr. 28,900.00"},{"v":13400,"d":"kr. 13,400.00"},{"v":9060,"d":"kr. 9,060.00"}]